bitfinex-derivatives/quotes_BTCF0:USTF0_20251023
["timestamp","ask_amount","ask_price","bid_price","bid_amount"]
[1761186344794,0.90329957,108420.0,108410.0,0.3608]
[1761186351716,0.83708279,108420.0,108410.0,0.3608]
[1761186351916,0.91986303,108420.0,108410.0,0.3608]
[1761186352118,0.83708279,108420.0,108410.0,0.3608]
[1761186352414,0.91986303,108420.0,108410.0,0.3608]
[1761186376325,0.95313362,108420.0,108410.0,0.3608]
[1761186376626,0.93313362,108420.0,108410.0,0.3608]
[1761186377027,0.97313362,108420.0,108410.0,0.3608]
[1761186377324,1.10313362,108420.0,108410.0,0.3608]
[1761186379026,0.97313362,108420.0,108410.0,0.3608]
[1761186380128,0.98313362,108420.0,108410.0,0.3608]
[1761186380926,1.11313362,108420.0,108410.0,0.3608]
[1761186382125,1.38313362,108420.0,108410.0,0.3608]
[1761186382328,0.05893,108410.0,108400.0,0.0246]
[1761186382525,0.92047316,108410.0,108400.0,0.0246]
[1761186382826,0.05764,108390.0,108380.0,0.00461318]
[1761186383017,1.30927399,108390.0,108380.0,0.00461318]
[1761186383217,1.39223187,108390.0,108380.0,0.00461318]
[1761186383421,1.27618104,108390.0,108380.0,0.00461318]
[1761186383725,1.67618104,108390.0,108380.0,0.00461318]
[1761186384227,1.68418104,108390.0,108380.0,0.00561318]
[1761186384729,1.68818104,108390.0,108380.0,0.00561318]
[1761186384930,1.60522316,108390.0,108380.0,0.00561318]
[1761186385129,1.67151345,108390.0,108380.0,0.00561318]
[1761186386131,1.60522316,108390.0,108380.0,0.00561318]
[1761186386334,1.60622316,108390.0,108380.0,0.00561318]
[1761186386828,1.37214998,108390.0,108380.0,0.00561318]
[1761186387029,1.36814998,108390.0,108380.0,0.00561318]
[1761186387223,1.37214998,108390.0,108380.0,0.00461318]
[1761186387426,1.37214998,108390.0,108380.0,0.00561318]
[1761186387832,1.36314998,108390.0,108380.0,0.00461318]
[1761186388033,1.37214998,108390.0,108380.0,0.00561318]
[1761186388430,1.43844027,108390.0,108380.0,0.00561318]
[1761186388726,1.43844027,108390.0,108380.0,3.18e-06]
[1761186388932,1.33844027,108390.0,108380.0,3.18e-06]
[1761186389134,1.59844027,108390.0,108380.0,3.18e-06]
[1761186389933,1.59844027,108390.0,108340.0,0.00461489]
[1761186389934,0.24523998,108350.0,108340.0,0.00461489]
[1761186390232,0.59414534,108350.0,108340.0,0.00461489]
[1761186390631,0.64414534,108350.0,108340.0,0.00461489]
[1761186390825,0.67724582,108350.0,108340.0,0.00461489]
[1761186391027,0.67724582,108350.0,108340.0,0.00661489]
[1761186391224,0.64414534,108350.0,108340.0,0.00761489]
[1761186391534,0.65316813,108350.0,108340.0,0.00761489]
[1761186391733,0.46569815,108350.0,108340.0,0.00761489]
[1761186392033,0.65316813,108350.0,108340.0,0.00761489]
[1761186393126,0.62834277,108350.0,108340.0,0.00761489]
[1761186393425,0.65316813,108350.0,108340.0,0.00761489]
[1761186394136,0.62834277,108350.0,108340.0,0.00761489]
[1761186394329,0.38197,108350.0,108340.0,0.40761489]
[1761186396436,0.56943998,108350.0,108340.0,0.40761489]
[1761186396736,0.57856832,108350.0,108340.0,0.40761489]
[1761186399843,0.56943998,108350.0,108340.0,0.40761489]
[1761186403644,0.38197,108350.0,108340.0,0.40761489]
[1761186403944,0.56943998,108350.0,108340.0,0.40761489]
[1761186408146,0.24523998,108350.0,108340.0,0.40761489]
[1761186408444,0.56939998,108350.0,108340.0,0.40761489]
[1761186410137,0.59415291,108350.0,108340.0,0.40761489]
[1761186412246,0.62725339,108350.0,108340.0,0.40761489]
[1761186413147,0.60250046,108350.0,108340.0,0.40761489]
[1761186415344,0.65215119,108350.0,108340.0,0.40761489]
[1761186415943,0.32799119,108350.0,108340.0,0.40761489]
[1761186416149,0.36307307,108350.0,108340.0,0.68737667]
[1761186416446,0.38503307,108350.0,108340.0,0.71207727]
[1761186416837,0.40700307,108350.0,108340.0,0.71207727]
[1761186417239,0.08280307,108350.0,108340.0,0.71207727]
[1761186417436,0.40700307,108350.0,108340.0,0.71207727]
[1761186418551,0.40700307,108350.0,108340.0,0.52460729]
[1761186419652,0.44010355,108350.0,108340.0,0.52460729]
[1761186420657,0.41522048,108350.0,108340.0,0.52460729]
[1761186421455,0.44013601,108350.0,108340.0,0.52460729]
[1761186421656,0.44013601,108350.0,108340.0,0.71207727]
[1761186421853,0.44013601,108350.0,108340.0,0.43231549]
[1761186422055,0.60269046,108350.0,108340.0,0.03231549]
[1761186422266,0.60269046,108350.0,108340.0,0.00761489]
[1761186423747,0.65234119,108350.0,108340.0,0.00761489]
[1761186424458,1.30234119,108350.0,108340.0,0.00761489]
[1761186424659,1.37579095,108350.0,108340.0,0.00761489]
[1761186424857,1.39254786,108350.0,108340.0,0.00761489]
[1761186425062,1.39254786,108350.0,108340.0,0.02130679]
[1761186425465,1.30958998,108350.0,108340.0,0.02130679]
[1761186426159,1.39254786,108350.0,108340.0,0.02130679]
[1761186426365,1.05254786,108350.0,108340.0,0.02130679]
[1761186426564,0.80040375,108350.0,108340.0,0.02130679]
[1761186426768,0.40040375,108350.0,108340.0,0.02130679]
[1761186428065,0.38083,108340.0,108330.0,7.562e-05]
[1761186428261,0.63468846,108340.0,108330.0,7.562e-05]
[1761186429165,0.63468846,108340.0,108330.0,0.00307562]
[1761186429675,0.05655,108310.0,108300.0,0.05993719]
[1761186429966,0.62636363,108310.0,108300.0,0.03523659]
[1761186430764,0.62643925,108310.0,108300.0,0.03523659]
[1761186431165,0.43896927,108310.0,108300.0,0.03523659]
[1761186431368,0.40579004,108310.0,108300.0,0.03823659]
[1761186431767,0.40579004,108310.0,108300.0,0.04023659]
[1761186434873,0.08151004,108310.0,108300.0,0.53256249]
[1761186435076,7.562e-05,108310.0,108300.0,0.72003247]
[1761186435665,0.04400562,108310.0,108300.0,0.72003247]
[1761186436261,0.04400562,108310.0,108300.0,0.55726309]
[1761186436467,0.05662562,108310.0,108300.0,0.74473307]
[1761186437277,0.05662562,108310.0,108300.0,0.34473307]
[1761186438272,0.05662562,108310.0,108300.0,0.06493719]
[1761186438677,0.05662562,108310.0,108300.0,0.04023659]
[1761186439569,0.05662562,108310.0,108300.0,0.13256249]
[1761186439976,0.05662562,108310.0,108300.0,0.14624538]
[1761186440778,0.05662562,108310.0,108300.0,0.05391948]
[1761186440976,0.05662562,108310.0,108300.0,0.14624538]
[1761186441880,0.05662562,108310.0,108300.0,0.32003247]
[1761186442080,0.05662562,108310.0,108300.0,0.13256249]
[1761186442469,0.05662562,108310.0,108300.0,0.14618582]
[1761186448678,0.05662562,108310.0,108300.0,0.35726785]
[1761186448679,0.26770765,108310.0,108300.0,0.35726785]
[1761186448981,0.05662562,108310.0,108300.0,0.35726785]
[1761186449174,0.05662562,108310.0,108300.0,0.38196845]
[1761186450783,0.05662562,108310.0,108300.0,0.35726785]
[1761186451080,0.05662562,108310.0,108300.0,0.34364452]
[1761186451282,0.05662562,108310.0,108300.0,0.36834512]
[1761186452483,0.02203562,108310.0,108300.0,1.01245332]
[1761186452687,0.02336562,108310.0,108300.0,1.01245332]
[1761186452980,0.04598562,108310.0,108300.0,0.80137129]
[1761186453175,0.05873562,108310.0,108300.0,0.80137129]
[1761186458286,0.05873562,108310.0,108300.0,0.815036]
[1761186458789,0.26981765,108310.0,108300.0,0.815036]
[1761186458989,0.05873562,108310.0,108300.0,0.415036]
[1761186459882,0.05873562,108310.0,108300.0,0.40137129]
[1761186464489,0.05873562,108310.0,108300.0,0.37667069]
[1761186464690,0.05873562,108310.0,108300.0,0.40156365]
[1761186465294,0.05873562,108310.0,108300.0,0.37667069]
[1761186466190,0.08362004,108310.0,108300.0,0.40156412]
[1761186468895,0.07087004,108310.0,108300.0,0.61264615]
[1761186469695,0.02496004,108310.0,108300.0,0.61264615]
[1761186470097,0.02496004,108310.0,108300.0,1.01264615]
[1761186470494,0.02496004,108310.0,108300.0,1.06264615]
[1761186470995,0.02496004,108310.0,108300.0,1.29264615]
[1761186472100,0.02496004,108310.0,108300.0,1.26775272]
[1761186472302,7.562e-05,108310.0,108300.0,1.26775272]
[1761186473201,7.562e-05,108310.0,108300.0,1.07775272]
[1761186474400,7.562e-05,108310.0,108300.0,1.10264158]
[1761186476204,7.562e-05,108310.0,108300.0,1.12729197]
[1761186481101,0.02488442,108330.0,108300.0,1.35077889]
[1761186481302,0.06930442,108330.0,108320.0,0.37271127]
[1761186481506,0.08321442,108330.0,108320.0,0.40588505]
[1761186482315,0.08321442,108330.0,108320.0,0.37271127]
[1761186482316,0.05833,108330.0,108320.0,0.37271127]
[1761186483507,0.05833,108330.0,108320.0,0.37371127]
[1761186484206,0.05833,108330.0,108320.0,0.37271127]
[1761186484403,0.05833,108330.0,108320.0,0.37371127]
[1761186484606,0.05833,108330.0,108320.0,0.37471127]
[1761186485596,0.05833,108330.0,108320.0,0.37371127]
[1761186486108,0.05833,108330.0,108320.0,0.38291953]
[1761186488806,0.05833,108330.0,108320.0,0.37371127]
[1761186489010,1.26283771,108330.0,108320.0,0.001]
[1761186489205,1.31771969,108330.0,108320.0,0.001]
[1761186489910,1.29364636,108330.0,108320.0,0.001]
[1761186492314,1.29364636,108330.0,108320.0,0.01464927]
[1761186496313,1.27705993,108330.0,108320.0,0.01464927]
[1761186496816,1.32682633,108330.0,108320.0,0.01464927]
[1761186497019,0.92682633,108330.0,108320.0,0.01464927]
[1761186498019,1.32682633,108330.0,108320.0,0.01464927]
[1761186500021,1.29364636,108330.0,108320.0,0.01464927]
[1761186506428,1.29364636,108330.0,108320.0,0.10699265]
[1761186507530,1.29364636,108330.0,108320.0,0.01468375]
[1761186508932,1.29364636,108330.0,108320.0,0.10699265]
[1761186510729,1.05910956,108330.0,108320.0,0.10699265]
[1761186511229,1.05910956,108330.0,108320.0,0.01468375]
[1761186512629,1.05910956,108330.0,108320.0,0.10699265]
[1761186513429,1.05910956,108330.0,108320.0,0.01468375]
[1761186515934,1.05910956,108330.0,108320.0,0.10699265]
[1761186516237,1.07573164,108330.0,108320.0,0.10699265]
[1761186520932,1.07573164,108330.0,108320.0,0.01468375]
[1761186521235,1.07573164,108330.0,108320.0,0.10699265]
[1761186526338,1.00934316,108330.0,108320.0,0.10699265]
[1761186528337,1.07573164,108330.0,108320.0,0.10699265]
[1761186528637,1.00934316,108330.0,108320.0,0.10699265]
[1761186528825,1.00934316,108330.0,108320.0,0.0933089]
[1761186530240,1.07573164,108330.0,108320.0,0.0933089]
[1761186530638,1.00934316,108330.0,108320.0,0.0933089]
[1761186531039,1.00934316,108330.0,108320.0,0.10699962]
[1761186533038,1.00934316,108330.0,108320.0,0.01469072]
[1761186536443,1.07573164,108330.0,108320.0,0.01469072]
[1761186537940,1.07573164,108330.0,108320.0,0.10699982]
[1761186542248,0.52471848,108330.0,108320.0,0.1300891]
[1761186542543,0.14145181,108330.0,108320.0,0.7425967]
[1761186542742,0.46573181,108330.0,108320.0,0.7425967]
[1761186542944,0.41585861,108330.0,108320.0,0.7425967]
[1761186543343,0.44077479,108330.0,108320.0,0.55496944]
[1761186543852,0.44077479,108330.0,108320.0,0.55596944]
[1761186544349,0.44077479,108330.0,108320.0,0.55496944]
[1761186544649,0.44077479,108330.0,108320.0,0.55596944]
[1761186545249,0.44077479,108330.0,108320.0,0.5310891]
[1761186545451,0.44077479,108330.0,108320.0,0.5300891]
[1761186546350,0.44077479,108330.0,108320.0,0.71771636]
[1761186546953,0.44077479,108330.0,108320.0,0.31771636]
[1761186547148,0.11649479,108330.0,108320.0,0.71771636]
[1761186547354,0.11415479,108340.0,108330.0,0.1106905]
[1761186547548,0.11415479,108340.0,108330.0,0.31670776]
[1761186547955,0.08090618,108340.0,108330.0,0.31670776]
[1761186548258,0.06828618,108340.0,108330.0,0.31670776]
[1761186548556,0.06928618,108340.0,108330.0,0.31770776]
[1761186548854,0.08256618,108340.0,108330.0,0.31770776]
[1761186549153,0.08256618,108340.0,108330.0,0.32672827]
[1761186549541,0.08156618,108340.0,108330.0,0.13910101]
[1761186549743,0.06828618,108340.0,108330.0,0.73538827]
[1761186549950,0.08103618,108350.0,108340.0,0.129072]
[1761186550252,0.04337,108350.0,108340.0,0.31977926]
[1761186551453,0.05665,108350.0,108340.0,0.31977926]
[1761186551753,0.05665,108350.0,108340.0,0.32077926]
[1761186554957,0.05665,108350.0,108340.0,0.32177926]
[1761186555458,0.05665,108350.0,108340.0,0.31869926]
[1761186556560,0.05665,108350.0,108340.0,0.131072]
[1761186556752,0.05665,108350.0,108340.0,0.31869926]
[1761186559651,0.04337,108350.0,108340.0,0.31869926]
[1761186561060,0.05665,108350.0,108340.0,0.31869926]
[1761186561253,0.05665,108350.0,108340.0,0.31769926]
[1761186561455,0.05665,108350.0,108340.0,0.31869926]
[1761186564064,0.05665,108350.0,108340.0,0.31769926]
[1761186564266,0.05665,108350.0,108340.0,0.31869926]
[1761186564660,0.05665,108350.0,108340.0,0.30030926]
[1761186564963,0.68919344,108350.0,108340.0,0.094292]
[1761186565156,1.07159907,108350.0,108340.0,0.131072]
[1761186565459,1.07159907,108350.0,108340.0,0.130072]
[1761186565664,1.07159907,108350.0,108340.0,0.131072]
[1761186566262,1.01328956,108350.0,108340.0,0.131072]
[1761186566467,1.01328956,108350.0,108340.0,0.03878]
[1761186566665,1.01428956,108350.0,108340.0,0.03778]
[1761186567061,1.01428956,108350.0,108340.0,0.130072]
[1761186567269,1.04753817,108350.0,108340.0,0.130072]
[1761186567970,1.04753817,108350.0,108340.0,0.111682]
[1761186568170,0.72333817,108350.0,108340.0,0.001]
[1761186568372,1.02288587,108350.0,108340.0,0.001]
[1761186570673,1.04626619,108350.0,108340.0,0.001]
[1761186572271,1.09613939,108350.0,108340.0,0.001]
[1761186573083,1.04626619,108350.0,108340.0,0.001]
[1761186574686,1.09613939,108350.0,108340.0,0.001]
[1761186578378,1.09605939,108350.0,108340.0,0.001]
[1761186581087,0.77177939,108350.0,108340.0,0.001]
[1761186581390,1.09601939,108350.0,108340.0,0.001]
[1761186581891,0.8517632,108350.0,108340.0,0.001]
[1761186582188,1.06301078,108350.0,108340.0,0.01939]
[1761186582389,1.06301078,108350.0,108340.0,0.001]
[1761186591398,0.06041,108310.0,108300.0,0.00461659]
[1761186591595,0.61589758,108310.0,108300.0,0.01831275]
[1761186591801,0.73899838,108310.0,108300.0,0.01831275]
[1761186592893,0.95000596,108310.0,108300.0,0.01831275]
[1761186593101,0.96663138,108310.0,108300.0,0.01831275]
[1761186593295,0.96663138,108310.0,108300.0,0.02031275]
[1761186593494,1.36663138,108310.0,108300.0,0.02023713]
[1761186593699,1.36663138,108310.0,108300.0,0.02123713]
[1761186593994,1.60663138,108310.0,108300.0,0.02123713]
[1761186594195,1.60663138,108310.0,108300.0,0.01923713]
[1761186594596,1.5402429,108310.0,108300.0,0.01923713]
[1761186594993,1.5402429,108310.0,108300.0,0.01955017]
[1761186595393,1.5898761,108310.0,108300.0,0.01955017]
[1761186595592,1.5402429,108310.0,108300.0,0.01955017]
[1761186596098,1.58987614,108310.0,108300.0,0.01955017]
[1761186600504,1.34987614,108310.0,108300.0,0.01955017]
[1761186601305,1.38290878,108310.0,108300.0,0.01955017]
[1761186604001,1.38290878,108310.0,108300.0,0.01956502]
[1761186604808,1.38410878,108310.0,108300.0,0.01956502]
[1761186606207,1.35107614,108310.0,108300.0,0.01956502]
[1761186606605,0.44740606,108310.0,108300.0,0.45834502]
[1761186606804,0.36951969,108310.0,108300.0,0.3616784]
[1761186607014,0.67055532,108310.0,108300.0,0.05834502]
[1761186607310,0.69531969,108310.0,108300.0,0.05834502]
[1761186607509,0.69531969,108310.0,108300.0,0.15067082]
[1761186608110,0.67055532,108310.0,108300.0,0.15067082]
[1761186608518,0.67055532,108310.0,108300.0,0.05834502]
[1761186609413,0.69531969,108310.0,108300.0,0.05809227]
[1761186609616,0.36951969,108310.0,108300.0,0.05809227]
[1761186609911,0.69523969,108310.0,108300.0,0.05809227]
[1761186610309,0.36951969,108310.0,108300.0,0.05809227]
[1761186610612,0.69523969,108310.0,108300.0,0.05809227]
[1761186610812,0.36951969,108310.0,108300.0,0.05809227]
[1761186611110,0.69523969,108310.0,108300.0,0.05809227]
[1761186611907,0.15851211,108310.0,108300.0,0.76142565]
[1761186612103,0.69519969,108310.0,108300.0,0.76142565]
[1761186612612,0.69519969,108310.0,108300.0,0.55041807]
[1761186614607,0.36951969,108310.0,108300.0,0.55041807]
[1761186614815,0.69515969,108310.0,108300.0,0.55041807]
[1761186615514,0.62182195,108310.0,108300.0,0.55041807]
[1761186615702,0.08517437,108310.0,108300.0,0.76142565]
[1761186615913,0.06800437,108320.0,108310.0,0.1310973]
[1761186616205,0.36892,108320.0,108310.0,0.35210488]
[1761186616407,0.32587945,108330.0,108320.0,0.1310888]
[1761186616607,0.32587945,108330.0,108320.0,0.03878]
[1761186616608,0.65155945,108330.0,108320.0,0.03878]
[1761186617803,0.65555945,108330.0,108320.0,0.03878]
[1761186618007,0.65655945,108330.0,108320.0,0.03878]
[1761186619717,0.62354195,108330.0,108320.0,0.03878]
[1761186621622,0.86756703,108330.0,108320.0,0.03878]
[1761186621920,0.84280266,108330.0,108320.0,0.03878]
[1761186622314,0.86764262,108330.0,108320.0,0.03878]
[1761186622717,0.86664262,108330.0,108320.0,0.03878]
[1761186622916,0.86464262,108330.0,108320.0,0.03878]
[1761186623115,0.86964262,108330.0,108320.0,0.03878]
[1761186624216,0.62561754,108330.0,108320.0,0.1310888]
[1761186624417,0.62561754,108330.0,108320.0,0.03878]
[1761186624721,0.83562512,108330.0,108320.0,0.03878]
[1761186625023,0.86864262,108330.0,108320.0,0.03878]
[1761186625516,0.86764262,108330.0,108320.0,0.03878]
[1761186625719,0.83462512,108330.0,108320.0,0.03878]
[1761186626121,0.86364262,108330.0,108320.0,0.03878]
[1761186626425,0.86964262,108330.0,108320.0,0.03878]
[1761186626825,0.86864262,108330.0,108320.0,0.03878]
[1761186627629,0.05687,108320.0,108310.0,0.1310918]
[1761186627823,0.29271502,108320.0,108310.0,0.1310918]
[1761186630022,0.26787758,108320.0,108310.0,0.1310918]
[1761186630824,0.05687,108320.0,108310.0,0.1310918]
[1761186632027,0.05687,108320.0,108310.0,0.1320918]
[1761186632226,0.08170744,108320.0,108310.0,0.1320918]
[1761186639835,0.11472494,108320.0,108310.0,0.1320918]
[1761186640130,0.11472494,108320.0,108310.0,0.5320918]
[1761186640728,0.08170744,108320.0,108310.0,0.5320918]
[1761186641034,0.04358,108330.0,108320.0,0.1310888]
[1761186641325,0.0904475,108340.0,108330.0,0.1310803]
[1761186641526,0.05743,108340.0,108330.0,0.1310803]
[1761186641827,0.05743,108340.0,108330.0,0.5310803]
[1761186642028,0.0902375,108350.0,108340.0,0.1310718]
[1761186642823,0.27785855,108350.0,108340.0,0.1310718]
[1761186644918,0.27785855,108350.0,108340.0,0.1320718]
[1761186646235,0.29447429,108350.0,108340.0,0.1320718]
[1761186651323,0.10685324,108350.0,108340.0,0.1320718]
[1761186655329,0.69447429,108350.0,108340.0,0.0932918]
[1761186655539,0.69447429,108350.0,108340.0,0.001]
[1761186655540,1.01959429,108350.0,108340.0,0.001]
[1761186655741,0.69447429,108350.0,108340.0,0.001]
[1761186656342,1.05276495,108350.0,108340.0,0.001]
[1761186656840,0.05814,108340.0,108330.0,0.1310746]
[1761186657038,0.24576105,108340.0,108330.0,0.1310746]
[1761186658140,0.24576105,108340.0,108330.0,0.1320746]
[1761186658935,0.05814,108340.0,108330.0,0.1320746]
[1761186659843,0.24576105,108340.0,108330.0,0.1320746]
[1761186660942,0.05814,108340.0,108330.0,0.1320746]
[1761186661443,0.09127066,108340.0,108330.0,0.1320746]
[1761186661640,0.67889171,108340.0,108330.0,0.001]
[1761186661843,0.72852495,108340.0,108330.0,0.001]
[1761186663343,0.72852495,108340.0,108330.0,0.0933003]
[1761186663543,0.72852495,108340.0,108330.0,0.1116903]
[1761186664048,0.72852495,108340.0,108330.0,0.1310803]
[1761186664842,0.67889171,108340.0,108330.0,0.1116903]
[1761186665539,0.67889171,108340.0,108330.0,0.0923003]
[1761186666242,0.05814,108330.0,108320.0,0.131081]
[1761186666442,0.57080105,108330.0,108320.0,0.131081]
[1761186666647,0.24576105,108330.0,108320.0,0.131081]
[1761186667350,0.09127066,108330.0,108320.0,0.131081]
[1761186667654,0.09127066,108330.0,108320.0,0.132081]
[1761186672247,0.27889171,108330.0,108320.0,0.132081]
[1761186674350,0.09127066,108330.0,108320.0,0.132081]
[1761186675254,0.27889171,108330.0,108320.0,0.132081]
[1761186676650,0.27889171,108330.0,108320.0,0.272081]
[1761186679057,0.27889171,108330.0,108320.0,0.132081]
[1761186679353,0.27889171,108330.0,108320.0,0.252081]
[1761186679555,0.27889171,108330.0,108320.0,0.132081]
[1761186680452,0.09127066,108330.0,108320.0,0.132081]
[1761186680652,0.04416,108330.0,108320.0,0.74453715]
[1761186680955,0.05814,108330.0,108320.0,0.5569161]
[1761186681653,0.05814,108330.0,108320.0,0.6869161]
[1761186681853,0.05814,108330.0,108320.0,0.5569161]
[1761186682248,0.05814,108330.0,108320.0,0.7069161]
[1761186682957,0.05814,108330.0,108320.0,0.5569161]
[1761186683850,0.09127066,108330.0,108320.0,0.642081]
[1761186684359,0.09127066,108330.0,108320.0,0.6669161]
[1761186686963,0.09127066,108330.0,108320.0,0.5569161]
[1761186687162,0.27889171,108330.0,108320.0,0.1320888]
[1761186687359,0.65332495,108330.0,108320.0,0.02039]
[1761186687558,1.02019429,108330.0,108320.0,0.001]
[1761186687758,0.97056105,108330.0,108320.0,0.001]
[1761186688763,1.03694953,108330.0,108320.0,0.001]
[1761186690266,1.10941001,108330.0,108320.0,0.001]
[1761186690659,1.13290432,108330.0,108320.0,0.001]
[1761186690867,1.34401968,108330.0,108320.0,0.001]
[1761186691662,1.35331,108330.0,108320.0,0.001]
[1761186694170,1.35331,108330.0,108320.0,0.01466401]
[1761186694568,1.68331,108330.0,108320.0,0.01466401]
[1761186694965,1.6998794,108330.0,108320.0,0.01466401]
[1761186696964,1.6998794,108330.0,108320.0,4.01e-06]
[1761186697169,0.05642,108310.0,108300.0,0.00454097]
[1761186697369,0.64212015,108310.0,108300.0,0.00454097]
[1761186697973,1.25323551,108310.0,108300.0,0.00454097]
[1761186698468,1.25323551,108310.0,108300.0,0.00654097]
[1761186698774,1.25323551,108310.0,108300.0,0.00854097]
[1761186701168,1.27323551,108310.0,108300.0,0.00854097]
[1761186706286,1.28144698,108310.0,108300.0,0.00854097]
[1761186707371,1.24835197,108310.0,108300.0,0.03114097]
[1761186707573,1.03723661,108310.0,108300.0,0.03114097]
[1761186709094,1.03723661,108310.0,108300.0,0.04491791]
[1761186709984,1.03723661,108310.0,108300.0,0.06821791]
[1761186710384,1.01723661,108310.0,108300.0,0.06821791]
[1761186711989,1.01723661,108310.0,108300.0,0.02231791]
[1761186712191,1.01723661,108310.0,108300.0,0.04491791]
[1761186712493,1.01723661,108310.0,108300.0,0.06821791]
[1761186714494,1.01723661,108310.0,108300.0,0.02231791]
[1761186714894,0.61723661,108310.0,108300.0,0.06514791]
[1761186715094,0.29235661,108310.0,108300.0,0.06514791]
[1761186715393,0.65025162,108310.0,108300.0,0.06514791]
[1761186716296,0.62543037,108310.0,108300.0,0.06514791]
[1761186717295,0.67513516,108310.0,108300.0,0.06514791]
[1761186718196,0.67513516,108310.0,108300.0,0.02231791]
[1761186718500,0.64204015,108310.0,108300.0,0.06514791]
[1761186719603,0.64204015,108310.0,108300.0,0.04375791]
[1761186720091,0.62552377,108310.0,108300.0,0.04375791]
[1761186720296,0.62552377,108310.0,108300.0,0.06514791]
[1761186722602,0.62552377,108310.0,108300.0,0.06515655]
[1761186723400,0.62552377,108310.0,108300.0,0.04376655]
[1761186723701,0.88634392,108310.0,108300.0,0.02232655]
[1761186723900,0.67522856,108310.0,108300.0,0.02232655]
[1761186724101,0.88634392,108310.0,108300.0,0.02232655]
[1761186724293,0.85315551,108310.0,108300.0,0.02232655]
[1761186724894,0.64204015,108310.0,108300.0,0.02232655]
[1761186727705,0.85315551,108310.0,108300.0,0.02232655]
[1761186728000,0.64204015,108310.0,108300.0,0.02237587]
[1761186729709,0.85315551,108310.0,108300.0,0.02237587]
[1761186731511,0.64204015,108310.0,108300.0,0.02237587]
[1761186733313,0.85315551,108310.0,108300.0,0.02237587]
[1761186734405,0.86972377,108310.0,108300.0,0.02237587]
[1761186735408,0.91972377,108310.0,108300.0,0.02237587]
[1761186735607,1.56972377,108310.0,108300.0,0.02237587]
[1761186735909,0.05765,108280.0,108270.0,0.19326404]
[1761186736109,0.64271151,108280.0,108270.0,0.19326404]
[1761186736315,0.60948021,108280.0,108270.0,0.16009026]
[1761186736711,0.64271151,108280.0,108270.0,0.46774306]
[1761186737014,0.64271151,108280.0,108270.0,0.06974306]
[1761186737315,0.64271151,108280.0,108270.0,0.1371814]
[1761186737513,0.65182131,108280.0,108270.0,0.1371814]
[1761186737814,0.65182131,108280.0,108270.0,0.04483]
[1761186738312,0.65182131,108280.0,108270.0,0.04383]
[1761186738516,0.65182131,108280.0,108270.0,0.04583]
[1761186739214,0.65182131,108280.0,108270.0,0.04383]
[1761186739413,0.65182131,108280.0,108270.0,0.04483]
[1761186740003,0.65182131,108280.0,108270.0,0.1371814]
[1761186740206,0.39836485,108280.0,108270.0,0.1371814]
[1761186740402,0.60948021,108280.0,108270.0,0.1371814]
[1761186741516,0.60948021,108280.0,108270.0,0.34829676]
[1761186741819,0.60948021,108280.0,108270.0,0.1371814]
[1761186742018,0.60948021,108280.0,108270.0,0.002]
[1761186742317,0.64271151,108280.0,108270.0,0.04483]
[1761186742517,0.64271151,108280.0,108270.0,0.1371814]
[1761186747724,0.64271151,108280.0,108270.0,0.15103917]
[1761186749627,0.64271151,108280.0,108270.0,0.76215453]
[1761186750130,0.64271151,108280.0,108270.0,0.55103917]
[1761186752428,0.64271151,108280.0,108270.0,0.76215453]
[1761186752839,0.43159615,108280.0,108270.0,0.55103917]
[1761186754540,0.61933355,108280.0,108270.0,0.55103917]
[1761186755641,0.43159615,108280.0,108270.0,0.55103917]
[1761186756243,0.39836485,108280.0,108270.0,0.55103917]
[1761186757742,0.58610225,108280.0,108270.0,0.55103917]
[1761186757945,0.39836485,108280.0,108270.0,0.55103917]
[1761186759248,0.43159615,108280.0,108270.0,0.55103917]
[1761186764349,0.40667267,108280.0,108270.0,0.55103917]
[1761186765050,0.40667267,108280.0,108270.0,0.55108254]
[1761186765349,0.45651963,108280.0,108270.0,0.55108254]
[1761186768254,0.39295267,108280.0,108270.0,0.776463]
[1761186768444,0.39295267,108280.0,108270.0,0.5887256]
[1761186768445,0.40634267,108280.0,108270.0,0.5887256]
[1761186768746,0.40634267,108280.0,108270.0,0.5759956]
[1761186768951,0.43126791,108280.0,108270.0,0.5759956]
[1761186769250,0.64392703,108280.0,108270.0,0.15108254]
[1761186770753,0.99408007,108280.0,108270.0,0.0408142]
[1761186771145,1.01069573,108280.0,108270.0,0.01590114]
[1761186772355,1.01069573,108280.0,108270.0,0.03836109]
[1761186772954,1.01069573,108280.0,108270.0,0.05937109]
[1761186773358,1.01069573,108280.0,108270.0,0.01594109]
[1761186780861,1.01069573,108280.0,108270.0,0.10829249]
[1761186781067,1.01069573,108280.0,108270.0,0.12999249]
[1761186781665,1.01069573,108280.0,108270.0,0.10829249]
[1761186782065,1.01069573,108280.0,108270.0,0.01594109]
[1761186782368,1.04069573,108280.0,108270.0,0.01594109]
[1761186784671,1.04069573,108280.0,108270.0,0.01600486]
[1761186785570,0.99084877,108280.0,108270.0,0.03770486]
[1761186785775,1.0406738,108280.0,108270.0,0.03770486]
[1761186786360,1.05731138,108280.0,108270.0,0.03770486]
[1761186786774,0.65731138,108280.0,108270.0,0.03770486]
[1761186786966,0.65731138,108280.0,108270.0,0.01600486]
[1761186788269,0.46957398,108280.0,108270.0,0.01600486]
[1761186788462,0.65731138,108280.0,108270.0,0.03770486]
[1761186789881,0.65731138,108280.0,108270.0,0.01600486]
[1761186795177,0.65731138,108280.0,108270.0,0.002]
[1761186795370,0.65731138,108280.0,108270.0,0.01600642]
[1761186796278,0.64067291,108280.0,108270.0,0.01600642]
[1761186798376,0.59084877,108280.0,108270.0,0.01600642]
[1761186799876,0.64069651,108280.0,108270.0,0.01600642]
[1761186800273,0.59084877,108280.0,108270.0,0.01600642]
[1761186801574,0.59084877,108280.0,108270.0,0.06046642]
[1761186801882,0.61066296,108280.0,108270.0,0.06046642]
[1761186802182,0.42292556,108280.0,108270.0,0.06046642]
[1761186802777,0.09816556,108280.0,108270.0,0.06046642]
[1761186802982,0.42292556,108280.0,108270.0,0.15281782]
[1761186805887,0.45616347,108280.0,108270.0,0.15281782]
[1761186808894,0.45616347,108280.0,108270.0,0.55281782]
[1761186809084,0.10647358,108280.0,108270.0,0.77823828]
[1761186809289,0.05984567,108280.0,108270.0,0.77823828]
[1761186810997,0.0833643,108290.0,108280.0,0.1423228]
[1761186811197,0.0833643,108290.0,108280.0,0.19048532]
[1761186812087,0.0833643,108290.0,108280.0,0.58640532]
[1761186812292,0.05844,108290.0,108280.0,0.55224922]
[1761186812590,0.05944,108290.0,108280.0,0.56315709]
[1761186812890,0.27059631,108290.0,108280.0,0.78797795]
[1761186813299,0.27059631,108290.0,108280.0,0.76406366]
[1761186813497,0.27059631,108290.0,108280.0,0.75039911]
[1761186813999,0.05944,108290.0,108280.0,0.75039911]
[1761186814993,0.05944,108290.0,108280.0,0.75447911]